bitfinex/quotes_SOLUSD_20240712
["timestamp","ask_amount","ask_price","bid_price","bid_amount"]
[1720798680596,7.1981,138.93,138.9,7.1993]
[1720798681100,7.1969,138.95,138.91,25.196]
[1720798681612,7.1974,138.94,138.91,17.9972]
[1720798681815,7.1969,138.95,138.91,25.1959]
[1720798682020,7.1969,138.95,138.92,7.1983]
[1720798682212,7.1969,138.95,138.91,17.9972]
[1720798682213,7.1969,138.95,138.91,25.1958]
[1720798683198,7.1973,138.94,138.9,7.1992]
[1720798683712,7.1974,138.94,138.9,7.1993]
[1720798684023,7.1969,138.95,138.91,7.1988]
[1720798684530,25.5775,138.97,138.9,17.9982]
[1720798684531,7.1974,138.94,138.9,17.9982]
[1720798684905,17.991,138.96,138.87,18.0017]
[1720798685108,7.1985,138.92,138.88,7.2002]
[1720798685320,7.1989,138.91,138.88,7.2002]
[1720798685509,7.1989,138.91,138.87,25.2024]
[1720798686110,7.1989,138.91,138.88,7.2004]
[1720798686416,7.198,138.93,138.89,17.9993]
[1720798686639,7.198,138.93,138.89,25.1988]
[1720798686919,7.199,138.91,138.87,25.2031]
[1720798687105,17.9935,138.94,138.87,25.2031]
[1720798687304,7.1994,138.9,138.86,7.2012]
[1720798687513,7.1999,138.89,138.85,7.2017]
[1720798687921,30.0,138.88,138.86,7.2014]
[1720798689219,30.0,138.88,138.84,18.0053]
[1720798689621,30.0,138.88,138.86,7.2014]
[1720798689822,7.2021,138.85,138.82,7.2035]
[1720798690043,7.2021,138.85,138.81,18.0091]
[1720798690213,7.2021,138.85,138.76,56.6782]
[1720798690214,37.2025,138.84,138.8,7.2045]
[1720798690417,7.203,138.83,138.8,7.2045]
[1720798690610,30.0,138.84,138.8,7.2045]
[1720798690809,30.0,138.84,138.81,7.204]
[1720798691527,30.0,138.82,138.81,7.204]
[1720798691727,30.0,138.82,138.8,25.2157]
[1720798692047,30.0,138.82,138.77,18.0143]
[1720798692212,30.0,138.82,138.79,7.205]
[1720798692411,30.0,138.82,138.74,639.8]
[1720798692631,7.2041,138.81,138.77,7.2057]
[1720798692821,30.0,138.8,138.77,7.2057]
[1720798693522,30.0,138.8,138.76,25.2226]
[1720798694230,7.2041,138.81,138.77,7.206]
[1720798695122,10.0,138.82,138.76,18.0162]
[1720798695322,7.2054,138.79,138.75,7.2071]
[1720798695725,7.2062,138.77,138.73,25.2275]
[1720798696120,7.2058,138.78,138.74,7.2074]
[1720798696432,28.0092,138.82,138.73,18.0194]
[1720798696611,65.0,138.81,138.75,18.0178]
[1720798697010,52.2042,138.81,138.77,7.2059]
[1720798697319,30.0,138.78,138.76,7.2065]
[1720798697830,16.6123,138.83,138.77,18.0151]
[1720798698028,16.6123,138.83,138.74,34.69]
[1720798698338,16.6123,138.83,138.8,7.2045]
[1720798698845,16.6123,138.83,138.81,18.0099]
[1720798699030,30.0,138.82,138.81,18.0099]
[1720798699329,30.0,138.82,138.81,25.2139]
[1720798699528,30.0,138.82,138.8,7.2045]
[1720798699732,30.0,138.82,138.78,18.0131]
[1720798700029,30.0,138.82,138.75,18.0172]
[1720798700233,7.2051,138.79,138.75,25.2242]
[1720798700641,30.0,138.78,138.72,18.0209]
[1720798701435,37.2058,138.78,138.74,7.2074]
[1720798701635,30.0,138.78,138.74,18.019]
[1720798701815,30.0,138.78,138.76,25.2229]
[1720798702132,30.0,138.78,138.76,18.0164]
[1720798702331,37.2057,138.78,138.74,7.2077]
[1720798702532,37.2058,138.78,138.74,7.2076]
[1720798703037,30.0,138.78,138.75,7.2068]
[1720798703332,30.0,138.78,138.77,7.2061]
[1720798703842,15.7818,138.85,138.76,41.0449]
[1720798704027,15.7818,138.85,138.82,7.2033]
[1720798704226,30.0,138.83,138.81,25.2134]
[1720798704618,30.0,138.83,138.81,18.0094]
[1720798705014,30.0,138.83,138.81,7.204]
[1720798705213,15.7818,138.85,138.77,20.0]
[1720798705420,22.9841,138.85,138.81,7.2039]
[1720798706131,15.7818,138.85,138.82,7.2034]
[1720798707023,15.7818,138.85,138.83,7.203]
[1720798707224,22.6326,138.88,138.84,7.2024]
[1720798707819,22.6326,138.88,138.82,18.0086]
[1720798707820,15.4319,138.88,138.82,18.0086]
[1720798708041,7.202,138.85,138.81,7.2039]
[1720798708227,7.2027,138.84,138.8,7.2045]
[1720798708430,7.2021,138.85,138.82,7.2035]
[1720798708629,15.4319,138.88,138.77,36.0831]
[1720798708829,22.6328,138.88,138.83,18.0072]
[1720798709026,7.201,138.87,138.83,18.0072]
[1720798709242,7.2016,138.86,138.82,7.2034]
[1720798709432,15.4319,138.88,138.81,7.2039]
[1720798709641,45.0,138.87,138.77,20.0]
[1720798709939,18.0042,138.86,138.8,7.2045]
[1720798710239,7.2027,138.84,138.8,7.2045]
[1720798710645,7.203,138.83,138.8,7.2045]
[1720798710941,7.2031,138.83,138.79,25.2173]
[1720798711142,7.2031,138.83,138.8,20.0]
[1720798711341,45.0,138.87,138.8,20.0]
[1720798711522,15.4319,138.88,138.81,18.0101]
[1720798711728,7.2016,138.86,138.82,7.2031]
[1720798712050,22.6325,138.88,138.84,7.2025]
[1720798712641,7.201,138.87,138.84,7.2025]
[1720798712941,7.201,138.87,138.83,25.2102]
[1720798713551,22.6325,138.88,138.84,7.2021]
[1720798713929,7.1995,138.9,138.86,7.2013]
[1720798714248,7.199,138.91,138.87,18.0023]
[1720798714560,7.1985,138.92,138.88,7.2004]
[1720798714850,7.1985,138.92,138.87,18.0023]
[1720798714851,7.1989,138.91,138.89,0.41424289]
[1720798715028,7.1989,138.91,138.87,25.203]
[1720798715234,7.1984,138.92,138.88,7.2002]
[1720798716328,6.3345,138.96,138.89,17.9998]
[1720798716532,7.1978,138.94,138.9,7.1993]
[1720798716949,7.1978,138.93,138.89,25.1995]
[1720798717541,32.9953,138.98,138.89,17.9998]
[1720798717845,7.1971,138.95,138.91,7.1988]
[1720798718748,7.1971,138.95,138.92,7.1983]
[1720798718948,7.1957,138.98,138.94,7.197]
[1720798719247,7.1963,138.96,138.93,17.9938]
[1720798719450,17.9873,138.99,138.9,17.9974]
[1720798719650,17.9897,138.97,138.9,17.9974]
[1720798719942,17.9897,138.97,138.85,15.3688]
[1720798719943,7.1987,138.92,138.88,7.2001]
[1720798720247,7.198,138.93,138.89,25.1996]
[1720798720449,7.1975,138.94,138.9,7.1993]
[1720798720652,7.1961,138.97,138.93,7.1975]
[1720798720942,7.1971,138.95,138.91,7.1985]
[1720798721132,7.1965,138.96,138.92,7.1983]
[1720798721332,17.9882,138.98,138.91,7.1987]
[1720798721545,7.1973,138.94,138.9,25.1971]
[1720798721847,7.1978,138.93,138.9,25.1971]
[1720798722145,17.9882,138.98,138.9,25.1971]
[1720798722343,7.1959,138.97,138.93,7.1974]
[1720798722651,6.4406,139.0,138.94,7.1969]
[1720798722652,7.1954,138.98,138.94,7.1969]
[1720798722851,6.4406,139.0,138.94,7.1969]
[1720798723050,7.1955,138.98,138.94,7.1969]
[1720798724354,7.1949,138.99,138.95,7.1966]
[1720798724542,7.1949,138.99,138.95,25.1885]
[1720798724847,6.4423,139.04,138.97,17.9891]
[1720798725027,7.1937,139.01,138.97,25.1847]
[1720798725233,7.1943,139.0,138.97,25.1847]
[1720798725435,7.1944,139.0,138.96,7.1962]
[1720798726152,7.1944,139.0,138.96,25.1869]
[1720798726346,7.1944,139.0,138.97,7.1957]
[1720798727744,7.1944,139.0,138.96,25.1868]
[1720798727934,7.1948,138.99,138.96,25.1868]
[1720798728135,7.1954,138.98,138.94,7.1971]
[1720798728353,7.1949,138.99,138.95,25.1887]
[1720798728855,7.1953,138.98,138.95,17.992]
[1720798729151,7.1953,138.98,138.95,25.1888]
[1720798729356,7.1948,138.99,138.95,25.1888]
[1720798729654,7.1948,138.99,138.96,7.1962]
[1720798729856,7.1944,139.0,138.96,7.1962]
[1720798730455,7.1948,138.99,138.95,25.1886]
[1720798730652,7.1955,138.98,138.95,17.992]
[1720798731154,7.1949,138.99,138.95,25.1883]
[1720798731450,7.1953,138.98,138.95,17.992]
[1720798731843,7.1953,138.98,138.94,7.1971]
[1720798733852,7.1949,138.99,138.95,7.1967]
[1720798734043,7.1949,138.99,138.95,6.571825]
[1720798736062,7.1947,138.99,138.96,7.1959]
[1720798736250,7.1947,138.99,138.95,7.1966]
[1720798737955,7.1944,139.0,138.96,7.196]
[1720798738153,7.1941,139.01,138.97,7.1957]
[1720798738953,7.1942,139.0,138.97,7.1957]
[1720798739142,7.1942,139.0,138.96,25.1866]
[1720798739747,7.1947,138.99,138.96,17.9905]
[1720798740366,7.1947,138.99,138.95,7.1967]
[1720798740580,7.1944,139.0,138.96,25.1869]
[1720798741052,7.1932,139.02,138.98,7.1948]
[1720798741568,7.1932,139.02,138.99,7.1947]
[1720798741747,7.1932,139.02,138.98,7.195]
[1720798741943,7.1924,139.04,139.01,7.1936]
[1720798742264,15.0393,139.06,139.01,7.1936]
[1720798742265,7.1917,139.05,139.01,7.1936]
[1720798742563,7.1912,139.06,139.01,17.9841]
[1720798742791,0.8479775,139.08,139.03,7.1921]
[1720798743080,0.8479775,139.08,139.01,19.42262299]
[1720798743572,7.1914,139.06,139.02,7.193]
[1720798743783,7.1916,139.05,139.02,7.193]
[1720798744066,7.1916,139.05,139.01,25.1777]
[1720798744261,7.1934,139.02,138.98,31.8408]
[1720798744670,0.8479775,139.08,138.96,15.4545]
[1720798744671,27.9793,139.05,138.96,15.4545]
[1720798744971,7.1934,139.02,138.98,7.1952]
[1720798745568,7.1951,138.99,138.95,7.1964]
[1720798745770,7.1944,139.0,138.96,7.1962]
[1720798746071,26.0748,139.03,138.96,17.9905]
[1720798746371,52.1933,139.02,138.98,7.1951]
[1720798747165,45.0,139.02,138.99,7.1946]
[1720798747369,22.1018,139.06,138.93,34.65]
[1720798747560,22.1018,139.06,139.0,17.9852]
[1720798747760,7.1935,139.02,138.98,7.1949]
[1720798747963,27.9794,139.05,138.94,20.0]
[1720798748271,7.1946,139.0,138.96,7.1959]
[1720798748474,27.9794,139.05,138.96,17.9906]
[1720798748651,22.1018,139.06,139.0,17.9853]
[1720798748852,45.0,139.05,139.0,17.9853]
[1720798749472,10.0,139.04,138.97,17.9886]
[1720798749766,7.1943,139.0,138.96,7.1961]
[1720798749970,7.1943,139.0,138.96,7.1962]
[1720798750564,7.1937,139.02,138.97,7.1957]
[1720798750755,32.1018,139.06,139.01,7.1936]
[1720798750756,22.1018,139.06,139.01,7.1936]
[1720798750956,7.1917,139.05,139.01,7.1936]
[1720798751562,15.9347,139.06,139.02,7.1931]
[1720798751764,15.9347,139.06,139.01,7.1935]
[1720798752564,7.1917,139.05,139.01,7.1935]
[1720798752761,10.8479775,139.08,139.03,7.1926]
[1720798753278,0.8479775,139.08,139.05,7.1915]
[1720798753455,0.8479775,139.08,139.04,17.9801]
[1720798753651,0.8479775,139.08,138.98,21.3322]
[1720798753859,8.0383775,139.08,139.04,7.192]
[1720798754981,8.0383775,139.08,139.05,7.1916]
[1720798755369,0.8479775,139.08,139.05,7.1916]
[1720798755769,8.0380775,139.08,139.05,7.1916]
[1720798756158,8.0380775,139.08,139.04,7.1919]
[1720798756386,0.8479775,139.08,139.06,7.1911]
[1720798756964,0.8479775,139.08,139.02,17.9823]
[1720798757161,0.8479775,139.08,139.03,20.0]
[1720798757363,7.1909,139.07,139.03,27.1924]
[1720798757562,0.8479775,139.08,139.02,17.9823]
[1720798757762,7.1912,139.06,139.02,17.9823]
[1720798758092,0.8479775,139.08,139.02,17.9823]
[1720798758589,8.0381775,139.08,139.04,7.1918]
[1720798759097,0.8479775,139.08,139.05,7.1913]
[1720798759389,0.8479775,139.08,139.06,7.1911]
[1720798759697,8.0381775,139.08,139.04,17.9795]
[1720798759986,0.8479775,139.08,139.01,17.9839]
[1720798760689,0.8479775,139.08,139.03,17.9812]
[1720798760861,8.0383775,139.08,139.04,7.1918]
[1720798761061,7.1907,139.07,139.03,17.9812]
[1720798761261,0.8479775,139.08,139.03,17.9812]
[1720798761656,7.191,139.07,139.03,25.1737]
[1720798761892,8.0382775,139.08,139.04,7.192]
[1720798762104,0.8479775,139.08,139.06,7.1911]
[1720798763090,0.8479775,139.08,139.05,25.1705]
[1720798763402,0.8479775,139.08,139.06,7.1908]
[1720798763587,0.8479775,139.08,139.06,7.84255907]
[1720798763785,0.8479775,139.08,139.06,8.62884138]
[1720798764296,8.0380775,139.08,139.05,17.9791]
[1720798764499,0.8479775,139.08,139.02,17.9821]
[1720798764802,0.8479775,139.08,139.05,7.1913]
[1720798765098,0.8479775,139.08,139.04,17.9799]
[1720798765099,0.8479775,139.08,139.06,7.1908]
[1720798765468,0.8479775,139.08,139.05,7.1915]
[1720798765674,0.8479775,139.08,139.04,17.9799]
[1720798765980,8.0380775,139.08,139.05,7.1915]
[1720798766173,8.0380775,139.08,139.04,25.1718]
[1720798766399,0.8479775,139.08,139.05,7.1913]
[1720798766805,0.8479775,139.08,139.06,7.191]
[1720798767127,0.8479775,139.08,139.07,7.1906]
[1720798768579,0.8479775,139.08,139.07,27.1906]
[1720798773807,0.8479775,139.08,139.07,27.1906]
[1720798773996,0.8479775,139.08,139.07,7.1906]
[1720798774633,0.8479775,139.08,139.06,25.1687]
[1720798775019,0.8479775,139.08,139.06,25.1688]
[1720798775395,0.8479775,139.08,139.07,7.1906]
[1720798776224,0.8479775,139.08,139.05,7.1915]
[1720798776427,0.8479775,139.08,139.01,15.8809]
[1720798776617,8.0382775,139.08,139.04,7.1918]
[1720798776799,0.8479775,139.08,139.05,7.1916]
[1720798777007,0.8479775,139.08,139.04,17.9801]
[1720798777822,0.8479775,139.08,139.04,25.1719]
[1720798778322,30.0,139.07,139.04,25.1719]
[1720798778517,30.0,139.07,139.05,7.1916]
[1720798779317,30.0,139.07,139.06,7.1911]
[1720798780110,30.0,139.07,139.05,7.1914]
[1720798780298,30.0,139.07,139.06,7.1911]
[1720798780503,30.0,139.07,139.04,17.9801]
[1720798780717,30.0,139.07,139.04,25.1719]
[1720798780911,30.0,139.07,139.06,7.1911]
[1720798781112,30.0,139.07,139.05,7.1916]
[1720798781420,15.372,139.07,139.05,7.1916]
[1720798781926,15.372,139.07,139.04,17.9801]
[1720798782302,30.0,139.06,139.05,7.1915]
[1720798782614,30.0,139.06,139.04,17.9801]
[1720798782929,30.0,139.06,139.03,7.1924]
[1720798783126,30.0,139.06,139.01,17.9831]
[1720798783428,37.1914,139.06,139.02,27.1931]
[1720798783599,7.1916,139.05,139.02,20.0]
[1720798783801,37.1913,139.06,139.02,7.1931]
[1720798784024,30.0,139.06,139.03,7.1925]
[1720798784325,30.0,139.06,139.04,7.192]
[1720798784531,30.0,139.05,139.03,25.1738]
[1720798784834,30.0,139.05,139.04,7.1921]
[1720798785213,30.0,139.05,139.03,17.9813]
[1720798785416,30.0,139.05,139.03,25.1737]
[1720798786106,7.1916,139.05,139.0,17.9846]
[1720798786425,7.1916,139.05,139.01,7.1936]
[1720798787222,37.1922,139.04,139.0,25.1787]
[1720798787800,7.1928,139.03,138.99,7.1945]
[1720798788236,30.0,139.02,138.99,7.1945]
[1720798788401,30.0,139.02,138.99,25.1812]
[1720798789225,37.1932,139.02,138.99,17.9867]
[1720798789725,37.1932,139.02,138.93,6.0075]
[1720798789726,30.0,139.02,138.96,17.99]
[1720798789902,52.1938,139.01,138.97,7.1955]
[1720798790102,30.0,139.0,138.97,7.1955]
[1720798790314,30.0,139.0,138.98,7.1951]
[1720798791314,30.0,139.0,138.97,7.1955]
[1720798791508,30.0,139.0,138.95,7.1966]
[1720798791718,52.1952,138.99,138.95,7.1966]
[1720798792220,7.1953,138.98,138.94,7.1971]
[1720798792736,45.0,138.99,138.93,17.9939]
[1720798792936,23.3559,138.95,138.91,7.1985]
[1720798793412,30.0,138.94,138.91,7.1985]
[1720798793613,30.0,138.94,138.9,25.1971]
[1720798793614,37.1977,138.94,138.9,25.1971]
[1720798794126,7.198,138.93,138.9,17.9978]
[1720798794322,30.0,138.94,138.91,7.1987]
[1720798794625,30.0,138.94,138.9,17.9978]
[1720798794918,30.0,138.94,138.93,7.1978]
[1720798795105,30.0,138.94,138.92,17.9957]
[1720798795515,30.0,138.94,138.91,7.1987]
[1720798795709,30.0,138.94,138.91,7.1986]
[1720798796112,30.0,138.94,138.92,7.1983]
[1720798796331,30.0,138.94,138.93,7.1978]
[1720798797728,30.0,138.94,138.91,25.1955]
[1720798797917,7.1963,138.96,138.92,7.1981]
[1720798798119,7.1969,138.95,138.91,25.1957]
[1720798798623,7.1973,138.94,138.87,34.6]
[1720798798826,7.197,138.95,138.91,7.1988]
[1720798799217,7.1965,138.96,138.92,7.1983]
[1720798799925,7.1959,138.97,138.93,7.1977]
[1720798800423,22.6367,138.99,138.95,7.1963]
[1720798800722,37.1963,138.96,138.93,7.1975]
[1720798800908,30.0,138.96,138.93,7.1974]
[1720798801111,30.0,138.96,138.93,17.9945]
[1720798801309,30.0,138.96,138.94,7.1971]
[1720798801530,30.0,138.96,138.95,7.1968]
[1720798802625,15.4419,138.99,138.95,7.1968]
[1720798802626,22.6367,138.99,138.95,7.1968]
[1720798803138,22.6367,138.99,138.93,17.9945]
[1720798803139,15.4419,138.99,138.94,7.1973]
[1720798803432,22.6368,138.99,138.95,7.1965]
[1720798803614,22.6368,138.99,138.96,7.1963]
[1720798803814,15.4419,138.99,138.95,17.9919]
[1720798804013,15.4419,138.99,138.95,25.1886]
[1720798804336,7.1958,138.97,138.93,7.1976]
[1720798804828,15.4419,138.99,138.95,7.1967]
[1720798805217,15.4419,138.99,138.96,7.1959]
[1720798805418,22.6367,138.99,138.95,7.1965]
[1720798805831,7.1954,138.98,138.94,25.19]
[1720798806035,7.1959,138.97,138.94,17.9929]
[1720798806215,7.1954,138.98,138.94,25.1901]
[1720798806535,7.1958,138.97,138.94,17.9929]
[1720798806924,7.1958,138.97,138.93,7.1975]
[1720798807230,7.1955,138.98,138.94,7.1973]
[1720798807929,22.6368,138.99,138.95,7.1965]
[1720798808232,22.6368,138.99,138.96,7.1963]
[1720798808420,22.6368,138.99,138.95,25.1885]
[1720798809720,15.4419,138.99,138.95,17.9919]
[1720798810439,7.1935,139.02,138.98,7.195]
[1720798810735,15.6236,139.03,138.99,17.9864]
[1720798810940,7.1918,139.05,139.01,7.1932]
[1720798811332,7.1918,139.05,139.01,25.1775]
[1720798811535,7.1922,139.04,139.0,7.194]
[1720798811843,7.1932,139.02,138.98,25.1816]
[1720798812046,7.1937,139.01,138.98,17.9869]
[1720798812219,7.1942,139.0,138.95,17.9911]
[1720798812532,7.1948,138.99,138.96,7.196]
[1720798812952,7.1943,139.0,138.96,7.196]
[1720798813621,7.1944,139.0,138.96,7.1961]
[1720798813946,7.195,138.99,138.95,25.1875]
[1720798814915,16.5366,139.01,138.92,17.9948]
[1720798815246,7.1961,138.97,138.93,7.1975]
[1720798815411,7.1963,138.96,138.93,7.1975]
[1720798816136,7.1963,138.96,138.92,25.1931]
[1720798817039,7.1969,138.95,138.91,7.1987]
[1720798817542,7.1965,138.96,138.92,7.1983]
[1720798817926,7.1968,138.95,138.91,25.1955]
[1720798819655,7.1981,138.93,138.89,7.1997]
[1720798820645,7.1983,138.92,138.89,7.1997]
[1720798821326,7.198,138.93,138.9,7.1994]
[1720798821522,15.6071,138.94,138.9,17.9981]
[1720798822238,22.8045,138.94,138.9,25.1974]
[1720798822441,7.1978,138.93,138.9,17.9981]
[1720798822633,7.1993,138.91,138.87,25.2025]
[1720798823047,7.1985,138.92,138.88,7.2004]
[1720798823850,7.1989,138.91,138.88,7.2004]
[1720798824044,7.1985,138.92,138.88,7.2004]
[1720798824341,15.6071,138.94,138.9,7.1994]
[1720798824524,22.8046,138.94,138.9,7.1994]
[1720798824724,22.8046,138.94,138.89,17.9996]
[1720798824725,15.6071,138.94,138.91,7.1987]
[1720798825138,7.1961,138.97,138.93,7.1976]
[1720798825343,22.777,138.98,138.94,7.1972]
[1720798825649,7.1963,138.96,138.93,25.1917]
[1720798825840,30.0,138.95,138.93,17.9941]
[1720798826042,30.0,138.95,138.93,25.1919]
[1720798826247,7.1959,138.97,138.93,25.1919]
[1720798826847,22.7771,138.98,138.94,7.1972]
[1720798827168,7.1944,139.0,138.96,7.1961]
[1720798827458,13.7242,139.03,138.99,7.1945]
[1720798827627,6.5311,139.03,138.97,17.9889]
[1720798827948,16.5311,139.03,138.94,17.9926]
[1720798828329,6.5311,139.03,138.94,17.9926]
[1720798828738,7.1951,138.99,138.94,17.9926]
[1720798829132,7.1954,138.98,138.94,25.1896]
[1720798829549,7.1958,138.97,138.94,17.9926]
[1720798830346,7.1963,138.96,138.92,7.1981]
[1720798831443,7.1958,138.97,138.93,7.1976]
[1720798831754,16.3606,138.98,138.93,17.994]
[1720798832049,7.1942,139.0,138.96,7.1959]
[1720798832356,15.155,139.02,138.97,7.1954]
[1720798832657,15.155,139.02,138.97,17.9893]
[1720798832849,22.3483,139.02,138.99,17.9862]
[1720798833051,7.1937,139.01,138.97,7.1957]
[1720798833462,7.1943,139.0,138.96,25.1857]
[1720798833846,7.1943,139.0,138.97,7.1957]
[1720798834045,7.1943,139.0,138.96,25.1857]
[1720798835063,7.1943,139.0,138.97,7.1957]
[1720798835259,7.1938,139.01,138.97,7.1957]
[1720798835559,22.3483,139.02,138.98,7.1951]
[1720798836055,7.1938,139.01,138.97,7.1956]
[1720798836247,7.1938,139.01,138.98,7.1952]
[1720798836452,22.3483,139.02,138.98,7.1952]
[1720798837755,7.1937,139.01,138.97,7.1955]
[1720798838639,7.1937,139.01,138.98,7.1952]
[1720798839358,15.155,139.02,138.98,7.1952]
[1720798839662,7.1937,139.01,138.97,7.1956]
[1720798839960,7.1937,139.01,138.89,21.1343]
[1720798839961,17.9846,139.01,138.95,7.1967]
[1720798840140,7.195,138.99,138.95,7.1967]
[1720798840453,17.9846,139.01,138.9,34.6]
[1720798840454,7.1937,139.01,138.97,7.1954]
[1720798841260,7.1937,139.01,138.98,7.1952]
[1720798841960,15.155,139.02,138.99,7.1947]
[1720798842177,15.155,139.02,139.0,25.1792]
[1720798842454,15.155,139.02,139.0,25.1793]
[1720798843641,15.155,139.02,139.0,17.9854]
[1720798843857,22.3482,139.02,138.98,7.195]
[1720798844470,7.1938,139.01,138.97,25.1838]
[1720798845455,7.1938,139.01,138.98,7.1951]
[1720798845969,22.3483,139.02,138.98,7.1952]
[1720798846268,22.3483,139.02,138.99,7.1947]
[1720798846746,15.155,139.02,139.0,7.1941]
[1720798847065,15.155,139.02,138.99,25.1808]
[1720798847768,22.3482,139.02,138.98,7.195]
[1720798847948,7.1942,139.0,138.96,25.1855]
[1720798848154,7.1943,139.0,138.97,7.1957]
[1720798848454,7.1939,139.01,138.97,7.1957]
[1720798849186,15.155,139.02,138.96,25.1857]
[1720798849361,7.1948,138.99,138.96,17.9895]
[1720798849551,7.1957,138.98,138.94,7.1973]
[1720798850153,7.1959,138.97,138.93,25.1914]
[1720798850353,7.1973,138.94,138.9,17.9974]
[1720798850569,7.1973,138.94,138.9,25.1965]
[1720798850966,7.1973,138.94,138.91,7.1988]
[1720798851378,7.197,138.95,138.91,7.1988]
[1720798851882,23.5556,138.96,138.92,7.1982]
[1720798852066,16.3592,138.96,138.93,7.1978]
[1720798852956,16.3592,138.96,138.85,56.1954]
[1720798852957,16.3592,138.96,138.94,17.9925]
[1720798853156,16.3592,138.96,138.94,25.1896]
[1720798853351,16.3592,138.96,138.95,7.1968]
[1720798853572,23.6106,138.99,138.95,7.1968]
[1720798853758,23.6106,138.99,138.94,17.9925]
[1720798853759,16.4157,138.99,138.96,7.1962]
[1720798854162,16.4157,138.99,138.96,17.99]
[1720798854363,22.7593,139.02,138.98,7.1949]
[1720798854564,30.0,138.99,138.98,7.1949]
[1720798854970,30.0,138.99,138.97,7.1956]
[1720798855384,15.5661,139.02,138.98,17.9875]
[1720798855585,15.5661,139.02,139.0,7.1941]
[1720798855890,22.7596,139.02,138.98,25.1827]
[1720798857383,15.5661,139.02,138.99,7.1947]
[1720798858066,22.7593,139.02,138.98,25.1826]
[1720798858574,7.1938,139.01,138.98,17.9875]
[1720798858880,7.1941,139.01,138.91,22.7121]
[1720798859067,22.7595,139.02,138.98,7.1948]
[1720798859468,7.1938,139.01,138.97,25.185]
[1720798859669,15.5661,139.02,138.97,17.9894]
[1720798859879,15.7243,139.05,138.99,17.9863]
[1720798860060,15.7243,139.05,139.02,7.1929]
[1720798860255,30.0,139.03,139.02,7.1932]
[1720798860756,8.0381775,139.08,139.03,7.1923]
[1720798860957,8.0381775,139.08,139.04,7.192]
[1720798861177,0.8479775,139.08,139.05,7.1913]
[1720798862484,0.8479775,139.08,138.99,6.3709]
[1720798862660,0.8479775,139.08,139.06,7.1911]
[1720798863261,0.8479775,139.08,139.07,7.1906]
[1720798863571,0.8479775,139.08,139.05,17.9789]
[1720798863572,0.8479775,139.08,139.05,25.1704]
[1720798864170,8.0380775,139.08,139.04,7.192]
[1720798865787,7.1906,139.07,139.03,7.1925]
[1720798866989,0.8479775,139.08,139.04,17.98]
[1720798867193,0.8479775,139.08,139.05,7.1911]
[1720798867390,0.8479775,139.08,139.05,7.1914]
[1720798867983,0.8479775,139.08,139.06,25.1683]
[1720798869695,0.8479775,139.08,139.05,7.1914]
[1720798869992,0.8479775,139.08,139.07,7.1906]
[1720798871603,0.8479775,139.08,139.06,7.1909]
[1720798872085,0.8479775,139.08,139.05,17.9789]
[1720798872086,0.8479775,139.08,139.07,7.1906]
[1720798874482,0.8479775,139.08,139.07,25.1671]
[1720798882403,0.8479775,139.08,139.07,45.1671]
[1720798883092,0.8479775,139.08,139.05,25.1702]
[1720798883297,0.8479775,139.08,139.06,20.0]
[1720798883601,0.8479775,139.08,139.06,27.191]